Cogmind - Beta 14 @@@ ROGUE MODE // 2024.09.20 @ 19:57:01 Player: ZarZap Result: Destroyed by Y-45 Defender with Heavy Assault Rifle Performance ------------- Evolutions (2) 1000 Regions Visited (3) 600 Robots Destroyed (55) 275 Value Destroyed (1580) 1580 Prototype IDs (2) 40 Alien Tech Used (0) 0 Bonus (0) 0 TOTAL SCORE: 3495 Bonus ------- None Cogmind --------- Core Integrity 0/550 Matter 230/300 Energy 34/100 System Corruption 5% Temperature Cool (0) Movement Core (400) Ox7 Location -8/Materials Parts ------- > --- POWER (1) -------- (None) > --- PROPULSION (4) --- (None) > --- UTILITY (4) ------ Large Storage Unit > --- WEAPON (2) ------- Shotgun > --- INVENTORY (15) --- Aluminum Leg Aluminum Leg EM Pulse Gun EM Shotgun Medium Laser Pulse Rifle EM Pulse Cannon Assault Rifle Grenade Launcher Improved Grenade Launcher Improved Datajack Peak State ------------ > --- POWER ------------ Light Deuterium Engine > --- PROPULSION ------- Medium Treads Medium Treads Medium Treads VSS Leg > --- UTILITY ---------- Large Storage Unit Machine Analyzer Transport Network Coupler > --- WEAPON ----------- Flak Cannon Flak Cannon > --- INVENTORY -------- Aluminum Leg Aluminum Leg EM Pulse Gun EM Shotgun Medium Laser EM Pulse Cannon Assault Rifle Grenade Launcher [Rating: 30] Favorites ----------- Power Light Deuterium Engine Engine Light Deuterium Engine Propulsion Aluminum Leg Treads Medium Treads Leg Aluminum Leg Utility Large Storage Unit Device Sensor Array Storage Large Storage Unit Processor Transport Network Coupler Protection Hardened Light Armor Plating Weapon Flak Cannon Energy Gun Spread Laser Energy Cannon EM Pulse Cannon Ballistic Gun Autogun Ballistic Cannon Flak Cannon Launcher Grenade Launcher Build | -11 -10 -9 -8 ------- Run | Yrd Mat Mat Mat Slots Evolved 4 | . . 2 2 Power . | . . . . Propulsion 2 | . . 1 1 Utility 2 | . . 1 1 Weapon . | . . . . Parts Attached 45 | . 4 12 29 Power 4 | . 1 1 2 Engine 4 | . 1 1 2 Core . | . . . . Reactor . | . . . . Propulsion 19 | . 1 6 12 Treads 3 | . . . 3 Leg 16 | . 1 6 9 Wheel . | . . . . Hover . | . . . . Flight . | . . . . Utility 6 | . 1 2 3 Device 1 | . . . 1 Storage 1 | . . 1 . Processor 2 | . . 1 1 Hackware . | . . . . Protection 2 | . 1 . 1 Artifact . | . . . . Weapon 16 | . 1 3 12 Energy Gun 4 | . . 1 3 Energy Cannon 1 | . . . 1 Ballistic Gun 6 | . . 1 5 Ballistic Cannon 4 | . 1 1 2 Launcher 1 | . . . 1 Special Weapon . | . . . . Impact Weapon . | . . . . Slashing Weapon . | . . . . Piercing Weapon . | . . . . Special Melee Weapon . | . . . . Unidentified Prototypes 2 | . . . 2 Parts Lost 23 | . . . 23 Power 3 | . . . 3 Propulsion 8 | . . . 8 Utility 5 | . . . 5 Weapon 7 | . . . 7 Highest Loss Streak 9 | . . . 9 To Critical Strikes . | . . . . Average Slot Usage (%) 83 | . 89 93 75 Engine 9 | . 14 11 7 Treads 2 | . . . 5 Leg 25 | . 28 32 19 Device 1 | . . . 2 Storage 10 | . 14 11 9 Processor 7 | . . 4 11 Protection 5 | . 3 11 3 Energy Gun 2 | . 4 3 1 Ballistic Gun 7 | . 14 11 3 Ballistic Cannon 9 | . 9 7 10 Peak Build Rating 30 | 6 8 23 30 Average Rating 17 | 6 6 15 21 On Entrance 10 | 6 6 8 23 Naked Turns . | . . . . Heaviest Build 40 | 12 18 39 40 Greatest Support 84 | 20 20 51 84 Greatest Overweight (x) 11 | . . 1 11 Average Overweight (x) . | . . . . Largest Inventory Capacity 15 | 8 8 15 15 Average Capacity 13 | 8 8 14 15 Most Carried 15 | 5 6 15 13 Average Carried 9 | 4 3 10 10 Final Capacity 15 | 8 8 15 15 Final Carried 14 | 2 6 14 11 Class Distribution -------------------- 100% | Mutant Dominant Class ---------------- Mutant | -10/Materials Mutant | -9/Materials Mutant | -8/Materials Resources | -11 -10 -9 -8 ----------- Run | Yrd Mat Mat Mat Matter Collected 1346 | 200 92 301 753 Remotely . | . . . . Salvage Created 1477 | . 163 495 819 Parts 77 | . 14 30 33 Haulers Intercepted 1 | . . 1 . Recyclers Shooed 3 | . 1 . 2 Parts Field Recycled . | . . . . Retrieved Matter . | . . . . Parts Self-Destructed . | . . . . Prevented . | . . . . Kills | -11 -10 -9 -8 ------- Run | Yrd Mat Mat Mat Combat Hostiles Destroyed 47 | . 7 13 27 Guns 24 | . 3 9 12 Cannons 21 | . 4 4 13 AOE 2 | . . . 2 Classes Destroyed 10 | . 4 3 3 Worker 3 | . 1 2 . Hauler 1 | . . 1 . Recycler 2 | . 1 . 1 Mechanic 1 | . . . 1 Watcher 1 | . . 1 . Swarmer 16 | . 6 3 7 Grunt 22 | . 1 8 13 Brawler 1 | . . . 1 Sentry 6 | . . 2 4 Hunter 2 | . . . 2 Best Kill Streak 9 | . 5 7 9 Combat Bots Only 9 | . 5 5 9 Max Kills in Single Turn 2 | . 1 1 2 Gunslinging . | . . . . Exploded 1 | . . . 1 Melee . | . . . . Uniques/NPCs Destroyed . | . . . . Combat | -11 -10 -9 -8 -------- Run | Yrd Mat Mat Mat Hostile Shots Fired 375 | . 41 34 300 Missed 85 | . 15 9 61 Damage Taken 3952 | . 309 286 3357 Core 681 | . 94 36 551 Absorbed by Shields . | . . . . Core Remaining (%) 84 | 100 62 91 . Volleys Fired 131 | . 18 29 84 Largest 2 | . 2 2 2 Hottest 124 | . 55 88 124 Shots Fired 235 | . 36 58 141 Gun 145 | . 18 49 78 Cannon 86 | . 18 9 59 Launcher 4 | . . . 4 Special . | . . . . Kinetic 182 | . 36 38 108 Thermal 48 | . . 20 28 Explosive 4 | . . . 4 Electromagnetic 1 | . . . 1 Robot Hit Streak 18 | . 3 12 18 Robot Miss Streak 8 | . 3 8 6 Penetration Max . | . . . . Secondary Targets 2 | . . 1 1 Max Gunslinging Chain 1 | . . 1 1 Shots Hit Robots 180 | . 20 41 119 Core Hits 175 | . 10 50 115 Critical Kills . | . . . . Critical Parts Destroyed 2 | . . . 2 Critical Strikes 2 | . . . 2 Destroy 2 | . . . 2 Melee Attacks . | . . . . Impact . | . . . . Slashing . | . . . . Piercing . | . . . . Sneak Attacks . | . . . . Combat Hostiles . | . . . . Follow-up Attacks . | . . . . Damage Inflicted 3253 | . 318 619 2316 Guns 1685 | . 119 515 1051 Cannons 1269 | . 196 104 969 Explosions 289 | . . . 289 Melee . | . . . . Ramming 10 | . 3 . 7 Kinetic 2241 | . 315 361 1565 Thermal 687 | . . 258 429 Explosive 289 | . . . 289 Electromagnetic 26 | . . . 26 Impact . | . . . . Slashing . | . . . . Piercing . | . . . . Highest Corruption 5 | . . . 5 Average Corruption 4 | . . . 4 Corruption Purged . | . . . . Corruption Blocked . | . . . . Effects 3 | . . . 3 Heat Flow Errors 1 | . . . 1 Energy Discharges 1 | . . . 1 Weapon Failures 1 | . . . 1 Overload Shots . | . . . . Overflow Damage . | . . . . Projectiles . | . . . . Explosions . | . . . . Melee . | . . . . Knockbacks 31 | . 1 3 27 Impact . | . . . . Kinetic 31 | . 1 3 27 Secondary . | . . . . Self-Inflicted Damage 9 | . . . 9 Shots 1 | . . . 1 Rammed 2 | . . . 2 Targets Rammed 4 | . 1 . 3 Kicked 2 | . 1 . 1 Crushed . | . . . . Highest Temperature 427 | . 54 394 427 Average Temperature 118 | . 24 152 105 Received Heat Transfer 1521 | . 42 120 1359 Effects 5 | . . 3 2 Energy Bleed 3 | . . 3 . Interference 1 | . . . 1 Damage (minor) 1 | . . . 1 Siege Activations . | . . . . Robots Corrupted . | . . . . Combat Hostiles . | . . . . Parts Fried . | . . . . Impact Corruptions . | . . . . Robots Melted . | . . . . Combat Hostiles . | . . . . Parts Melted 1 | . . . 1 Heat Transferred 1015 | . . 325 690 Parts Sabotaged . | . . . . Parts Stolen . | . . . . Parts Stripped . | . . . . Power Chain Reactions . | . . . . Alert | -11 -10 -9 -8 ------- Run | Yrd Mat Mat Mat Peak Influence 378 | . 186 292 378 Initial 115 | . . 78 115 Average 208 | . 99 184 255 Maximum Alert Level 1 | . . 1 1 Low Security (%) 44 | 100 100 56 21 Level 1 55 | . . 43 78 Level 2 . | . . . . Level 3 . | . . . . Level 4 . | . . . . Level 5 . | . . . . High Security . | . . . . Max Security . | . . . . Squads Dispatched 7 | . . 2 5 Investigation 3 | . . 1 2 Extermination . | . . . . Reinforcement 1 | . . 1 . Assault . | . . . . Garrison 3 | . . . 3 Intercept . | . . . . Searches Triggered . | . . . . Construction Impeded . | . . . . Haulers Reinforced . | . . . . Active Scanning Responses . | . . . . Cargo Convoy Interrupts . | . . . . Stealth | -11 -10 -9 -8 --------- Run | Yrd Mat Mat Mat Distress Signals 2 | . 1 . 1 Communications Jammed . | . . . . Distress Signals . | . . . . Times Spotted 60 | . 9 15 36 Peak Tracking Total 6 | . 5 5 6 Tactical Retreats 1 | . 1 . . Traps | -11 -10 -9 -8 ------- Run | Yrd Mat Mat Mat Traps Triggered 3 | . 1 1 1 Indirectly . | . . . . Trap Hack Attempts . | . . . . Triggered . | . . . . Disarmed . | . . . . Reprogrammed . | . . . . Reused . | . . . . Traps Extracted . | . . . . Installed . | . . . . Triggered . | . . . . Machines | -11 -10 -9 -8 ---------- Run | Yrd Mat Mat Mat Machines Disabled 1 | . . . 1 Max in Single Turn 1 | . . . 1 Machines Repaired . | . . . . Machines Dismantled . | . . . . Machines Sabotaged . | . . . . Overloaded Fab Kills . | . . . . Hacking | -11 -10 -9 -8 --------- Run | Yrd Mat Mat Mat Machines Accessed 3 | . 1 1 1 Terminals 2 | . 1 1 . Fabricators . | . . . . Repair Stations . | . . . . Recycling Units . | . . . . Scanalyzers . | . . . . Garrison Access 1 | . . . 1 Total Hacks 6 | . 1 3 2 Successful 2 | . 1 1 . Failed 4 | . . 2 2 Catastrophic 1 | . . . 1 Database Lockouts . | . . . . Manual . | . . . . Terminals 4 | . 1 3 . Fabricators . | . . . . Repair Stations . | . . . . Recycling Units . | . . . . Scanalyzers . | . . . . Garrison Access 2 | . . . 2 Terminal Hacks 2 | . 1 1 . Robot Analysis 1 | . . 1 . Maintenance Status 1 | . 1 . . Fabricator Hacks . | . . . . Repair Station Hacks . | . . . . Recycling Unit Hacks . | . . . . Scanalyzer . | . . . . Garrison Access Hacks . | . . . . Unauthorized Hacks . | . . . . Terminals . | . . . . Fabricators . | . . . . Repair Stations . | . . . . Recycling Units . | . . . . Scanalyzers . | . . . . Garrison Access . | . . . . Data Cores Recovered . | . . . . Used . | . . . . Hacking Detections 1 | . . . 1 Full Trace Events 1 | . . . 1 Feedback Events . | . . . . Feedback Blocked . | . . . . Robot Schematics Acquired . | . . . . Robots Built . | . . . . Authchips . | . . . . Time . | . . . . Total Robot Build Rating . | . . . . Part Schematics Acquired . | . . . . Parts Built . | . . . . Authchips . | . . . . Time . | . . . . Total Part Build Rating . | . . . . Parts Repaired . | . . . . Time . | . . . . Parts Recycled . | . . . . Recycled Matter . | . . . . Retrieved Matter . | . . . . Retrieved Components . | . . . . Parts Scanalyzed . | . . . . Part Schematics Acquired . | . . . . Parts Damaged . | . . . . Bothacking | -11 -10 -9 -8 ------------ Run | Yrd Mat Mat Mat Used RIF Installer . | . . . . Robots Hacked . | . . . . Non-combat . | . . . . Combat . | . . . . Robot Hacks Applied . | . . . . Relay Couplers Released . | . . . . Fabnet Peak Effective % . | . . . . Robots Rewired . | . . . . Allies Hacked . | . . . . Hacks Repelled . | . . . . Allies | -11 -10 -9 -8 -------- Run | Yrd Mat Mat Mat Total Allies . | . . . . Largest Group . | . . . . Highest-Rated Group . | . . . . Highest-Rated Ally . | . . . . Total Orders . | . . . . Ally Attacks . | . . . . Total Damage . | . . . . Kills . | . . . . Allies Corrupted . | . . . . Allies Melted . | . . . . Intel | -11 -10 -9 -8 ------- Run | Yrd Mat Mat Mat Robot Analysis Total 1 | . . 1 . Derelict Logs Recovered . | . . . . Drone Launches . | . . . . Drone Recoveries . | . . . . Exploration | -11 -10 -9 -8 ------------- Run | Yrd Mat Mat Mat Turns Passed 2014 | 2 293 683 1036 Spaces Moved 928 | 1 189 311 427 Core 13 | . . . 13 Treads 101 | . . . 101 Legs 814 | 1 189 311 313 Wheels . | . . . . Hover . | . . . . Flight . | . . . . Fastest Speed 110 | 120 120 120 110 Average Speed 160 | 120 120 169 171 Slowest Speed 600 | 120 120 193 600 Overloaded Moves . | . . . . Propulsion Burnouts . | . . . . Robots Hopped . | . . . . Cave-ins Triggered . | . . . . Exploration Rate (%) 26 | 2 38 31 36 Regions Visited 3 Branch Regions . Pre-discovered Areas . | . . . . Known Exits Taken . | . . . . Unknown Exits Taken 3 | 1 1 1 . Scrap Searched . | . . . . Spaces Dug . | . . . . Terrain Destroyed 16 | . . . 16 Melee . | . . . . Projectile . | . . . . AOE 16 | . . . 16 Terrain Rammed . | . . . . Walls Destroyed . | . . . . Machines Disabled . | . . . . Actions | -11 -10 -9 -8 --------- Run | Yrd Mat Mat Mat Total 1221 | 4 217 415 585 Wait 76 | . 2 46 28 Move 925 | . 188 310 427 Hop . | . . . . Pick Up 22 | . 3 10 9 Fast Attach 8 | . 1 1 6 Attach 16 | . . 2 14 Detach . | . . . . Swap 22 | . 3 9 10 Drop 17 | 4 1 8 4 Fire 131 | . 18 29 84 Melee . | . . . . Ram . | . . . . Kick 2 | . 1 . 1 Crush 2 | . . . 2 Escape Stasis . | . . . . Rewire . | . . . . Trap . | . . . . Miscellaneous . | . . . . Route ------- -11/Scrapyard -10/Materials (discovered 2 exits: *Mat / [*Min]) -9/Materials -8/Materials History --------- Turn | Location | Event 3 | -11/Scrapyard | Discovered new exit (range 0) 3 | -11/Scrapyard | Entered Materials 180 | -10/Materials | Discovered new exit (range 16) 275 | -10/Materials | Discovered new exit (range 3) 296 | -10/Materials | Entered another Materials area 296 | -9/Materials | Evolved 2 slots: Propulsion x1, Utility x1 330 | -9/Materials | Build established: Mutant 697 | -9/Materials | Discovered new exit (range 10) 979 | -9/Materials | Entered another Materials area 979 | -8/Materials | Evolved 2 slots: Propulsion x1, Utility x1 1210 | -8/Materials | Garrison activated, responded to threat 1282 | -8/Materials | Destroyed 9 combat bots 1290 | -8/Materials | Lost 9 parts (1p4n2u2w) 1903 | -8/Materials | Core integrity fell below 50% 1945 | -8/Materials | Lost 3 parts (2u1w) 2008 | -8/Materials | Core integrity fell below 20% 2015 | -8/Materials | Destroyed by Y-45 Defender with Heavy Assault Rifle Last Messages --------------- 01997_ K-01 Serf collects debris. 01999_ VSS Leg destroyed. 02001_ K-01 Serf collects debris. 02002_ G-47 Trooper destroyed. 02002_ Switching to secondary target: G-47 Trooper. 02002_ R-06 Scavenger collects Lgt. Ion Engine. 02004_ K-01 Serf collects debris. 02005_ Dropped Prc. Beam Rifle. 02005_ Shotgun destroyed. 02005_ R-06 Scavenger collects Flight Unit. 02006_ Aluminum Leg destroyed. 02007_ K-01 Serf collects debris. 02008_ R-06 Scavenger collects Flight Unit. 02009_ Critical hit (Burn: +37). 02012_ K-01 Serf collects debris. 02012_ Imp. Heat Sink melted. 02012_ G-47 Trooper destroyed. 02013_ K-01 Serf collects debris. 02014_ S-10 Pest destroyed. 02015_ K-01 Serf collects debris. Map ----- +----------------------------------------------------+ | # #????????????????????????????????????? | | #? #????????????????????????????????????? | | " #? #????????????????????????????????????? | | " #??#######????????????????????????????????????? | | " #?????????????????????????????????????????????? | | #########################?????????????????????? | | ????????????????????? | | ????????????????????? | | % ????????????????????? | | ######+###### ####+#???????????????????????????? | | ??# # #????????????????????????????????? | | ??# [ # #????????????????????????????????? | | ??# # #????????????????????????????????? | | ??# !!! # #?"??????????????????????????????? | | ??# ! # #?T??????????????????????????????? | | ??# !! # #?"??????????????????????????????? | | ??# # #????????????????????????????????? | | ??# # #????????????????????????????????? | | ??########### #????????????????????????????????? | | ????????????# #????????????????????????????????? | | ????????????# #????????????????????????????????? | | ????????????# %#??????????????????? #???????????? | | ????????????# ################## #???????????? | | ????????????# Y ^ #???????????? | | ????????????# [%%% +???????????? | | ????????????# % @% k k T #???????????? | | ????????????############### """ #???????????? | | ??????????????????????????# =""" #???????????? | | ??????????????????????????# %""" ?????????????? | | ??????????????????????????# [ ??????????????? | | ??????????????????????????# ???????????????? | | ??????????????????????????# ??????????????? | | ??????????????????????????# """ =??????????????? | | ??????????????????????????# """ !!?????????????? | | ??????????????????????????? """ ! ?????????????? | | ??????????????????????????? "??? ??????????????? | | ??????????????????????????? ????? ?????????????? | | ??????????????????????????? ????? ?????????????? | | ??????????????????????????? ???????????????????? | | ??????????????????????????? ???????????????????? | | ??????????????????????????? ##???????????????????? | | ???????????????????????????????????????????""????? | | ??????????????????????????????????????????""S????? | | ??????????????????????????????????????????""?????? | | ?????????????????????????????????????????????????? | | ??????????????????????????????????????"""?"""????? | | ??????????????????????????????????????"""?"""????? | | ??????????????????????????????????????"""?"""????? | | ?????????????????????????????????????????????????? | | ?????????????????????????????????????????????????? | +----------------------------------------------------+ Best States ------------- Heat Dissipation 31 Energy Generation 14 Energy Capacity 140 Matter Stores 300 Matter Capacity 300 Sight Range 16 Robot Scan Range 14 Terrain Scan Density 10 Armor Coverage 150 Evasion (%) 55 Recoil Reduction 3 Item Schematics ----------------- None Robot Schematics ------------------ None Fabricated ------------ Nothing Alien Tech Used ----------------- None Achievements -------------- None Challenges ------------ None Game ------ Seed ScatterEncryptedSpoofer Manual? 0 Play Time 00:21:23 Cumulative 23.4 hours Start 2024.09.20 @ 19:39:15 End 2024.09.20 @ 19:57:01 Sessions 1 Manual Loads 0 Difficulty Rogue Special Mode None Game No. 97 Rogue 93 Adventurer 4 Explorer 0 Win Type - Total 0 Types 0/0/0/0/0/0/0/0/0 Lore% 12 Gallery% 28 Achievement% 18 Wizard Run 0 Options --------- Layout 2 ASCII 0 Keyboard 0 Movement Mouse Keybinds 0 Fullscreen 1 Font 16/SmallcapsGlow Map View 55x47 Zoom Use 0% Tactical HUD 1 Map Filters NONE Filters NONE Steam 1 RUN: e6ea9e91-43b1-429f-82f2-7ffd8311488b